[Event "November 21 Early 2023"]
[Site "https://www.chess.com"]
[Date "2023.11.21"]
[Round "9"]
[White "Arslanov, Shamil"]
[Black "BardArtem"]
[Result "1-0"]
[Board "33"]
[TimeControl "180+1"]
[WhiteFideId "4192826"]
[WhiteElo "2326"]
[BlackElo "2846"]
[WhiteTeam "RUS"]
[WhiteClock "0:00:12"]
[BlackClock "0:00:02"]

1. d4 {[%clk 0:02:59]}  d5 {[%clk 0:02:59]} 2. e4 {[%clk 0:02:59]}  dxe4 {[%clk 0:02:42]} 3. Nc3 {[%clk 0:02:55]}  Nf6 {[%clk 0:02:39]} 4. f3 {[%clk 0:02:55]}  exf3 {[%clk 0:02:31]} 5. Nxf3 {[%clk 0:02:53]}  c6 {[%clk 0:02:27]} 6. Bc4 {[%clk 0:02:53]}  Bf5 {[%clk 0:02:26]} 7. O-O {[%clk 0:02:52]}  e6 {[%clk 0:02:23]} 8. Ng5 {[%clk 0:02:52]}  Bg6 {[%clk 0:02:19]} 9. Bxe6 {[%clk 0:02:52]}  Bd6 {[%clk 0:01:58]} 10. Bb3 {[%clk 0:02:40]}  O-O {[%clk 0:01:57]} 11. Bf4 {[%clk 0:02:26]}  Bxf4 {[%clk 0:01:56]} 12. Rxf4 {[%clk 0:02:27]}  Nbd7 {[%clk 0:01:54]} 13. Qf3 {[%clk 0:02:16]}  Qa5 {[%clk 0:01:46]} 14. h4 {[%clk 0:01:40]}  h6 {[%clk 0:01:37]} 15. Nge4 {[%clk 0:01:35]}  Nh5 {[%clk 0:01:17]} 16. Rg4 {[%clk 0:01:29]}  Bf5 {[%clk 0:01:18]} 17. Rf1 {[%clk 0:01:05]}  Bxg4 {[%clk 0:01:13]} 18. Qxg4 {[%clk 0:01:05]}  Qb4 {[%clk 0:00:23]} 19. Qxd7 {[%clk 0:00:32]}  Rad8 {[%clk 0:00:23]} 20. Qf5 {[%clk 0:00:30]}  Qxd4+ {[%clk 0:00:23]} 21. Kh2 {[%clk 0:00:31]}  Nf6 {[%clk 0:00:04]} 22. Nxf6+ {[%clk 0:00:20]}  Qxf6 {[%clk 0:00:05]} 23. Qxf6 {[%clk 0:00:19]}  gxf6 {[%clk 0:00:06]} 24. Rxf6 {[%clk 0:00:20]}  Kg7 {[%clk 0:00:06]} 25. Rf4 {[%clk 0:00:17]}  Rd7 {[%clk 0:00:05]} 26. Rf3 {[%clk 0:00:16]}  Rd4 {[%clk 0:00:05]} 27. Kh3 {[%clk 0:00:14]}  f5 {[%clk 0:00:05]} 28. Ne2 {[%clk 0:00:15]}  Rd6 {[%clk 0:00:02]} 29. Ng3 {[%clk 0:00:15]}  Kh8 {[%clk 0:00:01]} 30. Nxf5 {[%clk 0:00:15]}  Rdf6 {[%clk 0:00:01]} 31. g4 {[%clk 0:00:16]}  h5 {[%clk 0:00:01]} 32. c3 {[%clk 0:00:11]}  c5 {[%clk 0:00:02]} 33. Bc2 {[%clk 0:00:11]}  hxg4+ {[%clk 0:00:03]} 34. Kxg4 {[%clk 0:00:11]}  Rg8+ {[%clk 0:00:03]} 35. Kf4 {[%clk 0:00:11]}  Rb6 {[%clk 0:00:02]} 36. b3 {[%clk 0:00:11]}  a5 {[%clk 0:00:02]} 37. Be4 {[%clk 0:00:10]}  a4 {[%clk 0:00:01]} 38. Bd5 {[%clk 0:00:10]}  Rf8 {[%clk 0:00:01]} 39. Rg3 {[%clk 0:00:10]}  axb3 {[%clk 0:00:01]} 40. axb3 {[%clk 0:00:11]}  Rbf6 {[%clk 0:00:02]} 41. Rg5 {[%clk 0:00:12]}  Kh7 {[%clk 0:00:01]} 42. Rh5+ {[%clk 0:00:11]}  Kg6 {[%clk 0:00:02]} 43. Rh6# {[%clk 0:00:12]} 1-0

[Event "November 21 Early 2023"]
[Site "https://www.chess.com"]
[Date "2023.11.21"]
[Round "9"]
[White "Klukin, Kirill"]
[Black "Pastar, Slaven"]
[Result "0-1"]
[Board "34"]
[TimeControl "180+1"]
[WhiteFideId "24199273"]
[BlackFideId "14402718"]
[WhiteElo "2344"]
[BlackElo "2230"]
[WhiteTeam "RUS"]
[BlackTeam "BIH"]
[WhiteClock "0:00:02"]
[BlackClock "0:00:06"]

1. d4 {[%clk 0:03:00]}  b6 {[%clk 0:03:00]} 2. Nf3 {[%clk 0:03:00]}  Bb7 {[%clk 0:03:01]} 3. e3 {[%clk 0:03:01]}  e6 {[%clk 0:03:02]} 4. Bd3 {[%clk 0:03:02]}  Nf6 {[%clk 0:03:02]} 5. O-O {[%clk 0:03:01]}  Be7 {[%clk 0:03:03]} 6. c4 {[%clk 0:03:01]}  d5 {[%clk 0:03:03]} 7. Nc3 {[%clk 0:03:01]}  O-O {[%clk 0:03:03]} 8. cxd5 {[%clk 0:03:01]}  Nxd5 {[%clk 0:03:02]} 9. Qe2 {[%clk 0:03:01]}  c5 {[%clk 0:02:59]} 10. Rd1 {[%clk 0:02:36]}  cxd4 {[%clk 0:02:58]} 11. Nxd4 {[%clk 0:02:34]}  Nxc3 {[%clk 0:02:53]} 12. bxc3 {[%clk 0:02:34]}  Qc8 {[%clk 0:02:40]} 13. Bb2 {[%clk 0:02:31]}  Nc6 {[%clk 0:02:40]} 14. Rac1 {[%clk 0:02:18]}  Bf6 {[%clk 0:02:31]} 15. Nb5 {[%clk 0:02:08]}  Rd8 {[%clk 0:02:26]} 16. c4 {[%clk 0:01:33]}  Bxb2 {[%clk 0:01:48]} 17. Qxb2 {[%clk 0:01:33]}  a6 {[%clk 0:01:42]} 18. Nc3 {[%clk 0:01:16]}  Ne5 {[%clk 0:01:33]} 19. Bf1 {[%clk 0:01:04]}  Qc6 {[%clk 0:00:56]} 20. Qb3 {[%clk 0:00:12]}  Nf3+ {[%clk 0:00:29]} 21. gxf3 {[%clk 0:00:09]}  Qxf3 {[%clk 0:00:30]} 22. e4 {[%clk 0:00:09]}  e5 {[%clk 0:00:07]} 23. Bg2 {[%clk 0:00:10]}  Qg4 {[%clk 0:00:07]} 24. Qxb6 {[%clk 0:00:09]}  Rxd1+ {[%clk 0:00:06]} 25. Nxd1 {[%clk 0:00:09]}  Bxe4 {[%clk 0:00:04]} 26. Ne3 {[%clk 0:00:10]}  Qg6 {[%clk 0:00:04]} 27. Rd1 {[%clk 0:00:07]}  Qxb6 {[%clk 0:00:04]} 28. Bxe4 {[%clk 0:00:05]}  Rd8 {[%clk 0:00:05]} 29. Nd5 {[%clk 0:00:05]}  Qb8 {[%clk 0:00:04]} 30. Kg2 {[%clk 0:00:05]}  g6 {[%clk 0:00:04]} 31. Bf3 {[%clk 0:00:05]}  Kg7 {[%clk 0:00:05]} 32. Re1 {[%clk 0:00:05]}  f5 {[%clk 0:00:05]} 33. Be2 {[%clk 0:00:04]}  e4 {[%clk 0:00:05]} 34. Bf1 {[%clk 0:00:05]}  Qe5 {[%clk 0:00:05]} 35. Rd1 {[%clk 0:00:05]}  f4 {[%clk 0:00:05]} 36. Kg1 {[%clk 0:00:06]}  f3 {[%clk 0:00:05]} 37. Kh1 {[%clk 0:00:06]}  Qg5 {[%clk 0:00:06]} 38. Re1 {[%clk 0:00:07]}  Qh4 {[%clk 0:00:06]} 39. Nc7 {[%clk 0:00:05]}  Rd6 {[%clk 0:00:05]} 40. Ne8+ {[%clk 0:00:03]}  Kh6 {[%clk 0:00:05]} 41. Nxd6 {[%clk 0:00:04]}  Qxf2 {[%clk 0:00:04]} 42. Rd1 {[%clk 0:00:04]}  e3 {[%clk 0:00:04]} 43. Ne4 {[%clk 0:00:05]}  Qh4 {[%clk 0:00:04]} 44. Ng3 {[%clk 0:00:05]}  e2 {[%clk 0:00:04]} 45. Re1 {[%clk 0:00:02]}  exf1=Q+ {[%clk 0:00:04]} 46. Rxf1 {[%clk 0:00:03]}  Qg4 {[%clk 0:00:04]} 47. Rf2 {[%clk 0:00:03]}  Kg7 {[%clk 0:00:03]} 48. Kg1 {[%clk 0:00:04]}  h5 {[%clk 0:00:04]} 49. Kf1 {[%clk 0:00:04]}  h4 {[%clk 0:00:04]} 50. Nh1 {[%clk 0:00:04]}  Qxc4+ {[%clk 0:00:05]} 51. Kg1 {[%clk 0:00:04]}  Qc1+ {[%clk 0:00:05]} 52. Rf1 {[%clk 0:00:05]}  Qe3+ {[%clk 0:00:06]} 53. Nf2 {[%clk 0:00:05]}  g5 {[%clk 0:00:06]} 54. Kh1 {[%clk 0:00:05]}  Qe2 {[%clk 0:00:06]} 55. Kg1 {[%clk 0:00:05]}  g4 {[%clk 0:00:06]} 56. Rb1 {[%clk 0:00:02]}  g3 {[%clk 0:00:06]} 57. Rb7+ {[%clk 0:00:03]}  Kf8 {[%clk 0:00:06]} 58. Rb8+ {[%clk 0:00:03]}  Ke7 {[%clk 0:00:06]} 59. Rb7+ {[%clk 0:00:04]}  Kd8 {[%clk 0:00:07]} 60. hxg3 {[%clk 0:00:02]}  hxg3 {[%clk 0:00:06]} 0-1

[Event "November 21 Early 2023"]
[Site "https://www.chess.com"]
[Date "2023.11.21"]
[Round "9"]
[White "Bettalli, Francesco"]
[Black "Llorente Zaro, Alfonso"]
[Result "0-1"]
[Board "36"]
[TimeControl "180+1"]
[WhiteFideId "2816453"]
[BlackFideId "2254131"]
[WhiteElo "2226"]
[BlackElo "2485"]
[WhiteTeam "ITA"]
[BlackTeam "ESP"]
[WhiteClock "0:00:01"]
[BlackClock "0:00:05"]

1. e4 {[%clk 0:03:00]}  Nc6 {[%clk 0:02:45]} 2. Nf3 {[%clk 0:03:00]}  d5 {[%clk 0:02:43]} 3. exd5 {[%clk 0:02:56]}  Qxd5 {[%clk 0:02:44]} 4. Be2 {[%clk 0:02:56]}  Bg4 {[%clk 0:02:41]} 5. h3 {[%clk 0:02:52]}  Bh5 {[%clk 0:02:38]} 6. d4 {[%clk 0:02:51]}  e6 {[%clk 0:02:34]} 7. c4 {[%clk 0:02:50]}  Qd7 {[%clk 0:02:31]} 8. Nc3 {[%clk 0:02:47]}  Nf6 {[%clk 0:02:29]} 9. g4 {[%clk 0:02:44]}  Bg6 {[%clk 0:02:26]} 10. Be3 {[%clk 0:02:41]}  Ne4 {[%clk 0:02:20]} 11. Nxe4 {[%clk 0:02:34]}  Bxe4 {[%clk 0:02:19]} 12. Qa4 {[%clk 0:02:35]}  Bb4+ {[%clk 0:02:09]} 13. Kf1 {[%clk 0:02:30]}  Bd6 {[%clk 0:02:03]} 14. Kg2 {[%clk 0:02:28]}  Rd8 {[%clk 0:01:59]} 15. Rad1 {[%clk 0:02:27]}  a6 {[%clk 0:01:55]} 16. Qb3 {[%clk 0:02:16]}  O-O {[%clk 0:01:54]} 17. Bd3 {[%clk 0:02:14]}  Bxd3 {[%clk 0:01:31]} 18. Qxd3 {[%clk 0:02:12]}  b5 {[%clk 0:01:31]} 19. b3 {[%clk 0:02:12]}  Rb8 {[%clk 0:01:30]} 20. Qe4 {[%clk 0:02:10]}  bxc4 {[%clk 0:01:11]} 21. Ne5 {[%clk 0:02:09]}  Bxe5 {[%clk 0:01:06]} 22. dxe5 {[%clk 0:02:10]}  Qe8 {[%clk 0:01:07]} 23. bxc4 {[%clk 0:02:04]}  Na5 {[%clk 0:01:06]} 24. Bc5 {[%clk 0:02:03]}  Qa4 {[%clk 0:00:57]} 25. Bxf8 {[%clk 0:02:02]}  Rxf8 {[%clk 0:00:57]} 26. Rd2 {[%clk 0:01:43]}  h6 {[%clk 0:00:27]} 27. Rhd1 {[%clk 0:01:43]}  Qxc4 {[%clk 0:00:20]} 28. Qxc4 {[%clk 0:01:36]}  Nxc4 {[%clk 0:00:21]} 29. Rc2 {[%clk 0:01:36]}  Nxe5 {[%clk 0:00:18]} 30. Rxc7 {[%clk 0:01:36]}  Rb8 {[%clk 0:00:18]} 31. Rd2 {[%clk 0:01:28]}  g5 {[%clk 0:00:17]} 32. Ra7 {[%clk 0:01:25]}  Rb6 {[%clk 0:00:15]} 33. Kg3 {[%clk 0:01:10]}  Rc6 {[%clk 0:00:12]} 34. Rb2 {[%clk 0:00:43]}  Rc3+ {[%clk 0:00:08]} 35. Kg2 {[%clk 0:00:43]}  Ra3 {[%clk 0:00:08]} 36. Re2 {[%clk 0:00:17]}  Ng6 {[%clk 0:00:07]} 37. Re3 {[%clk 0:00:11]}  Rxa2 {[%clk 0:00:07]} 38. Rb3 {[%clk 0:00:08]}  Kg7 {[%clk 0:00:03]} 39. Rbb7 {[%clk 0:00:07]}  Ne5 {[%clk 0:00:03]} 40. Ra8 {[%clk 0:00:04]}  Nd3 {[%clk 0:00:03]} 41. Rba7 {[%clk 0:00:03]}  Rxf2+ {[%clk 0:00:03]} 42. Kg3 {[%clk 0:00:03]}  Rf1 {[%clk 0:00:02]} 43. Rxa6 {[%clk 0:00:04]}  Nf4 {[%clk 0:00:02]} 44. Ra3 {[%clk 0:00:03]}  Rd1 {[%clk 0:00:02]} 45. Rf3 {[%clk 0:00:01]}  Rh1 {[%clk 0:00:02]} 46. Kf2 {[%clk 0:00:01]}  Rxh3 {[%clk 0:00:02]} 47. Rxh3 {[%clk 0:00:01]}  Nxh3+ {[%clk 0:00:03]} 48. Kg3 {[%clk 0:00:02]}  Nf4 {[%clk 0:00:04]} 49. Ra4 {[%clk 0:00:03]}  h5 {[%clk 0:00:04]} 50. gxh5 {[%clk 0:00:03]}  Nxh5+ {[%clk 0:00:04]} 51. Kg4 {[%clk 0:00:03]}  Kg6 {[%clk 0:00:05]} 52. Ra8 {[%clk 0:00:03]}  f5+ {[%clk 0:00:05]} 53. Kf3 {[%clk 0:00:04]}  Nf6 {[%clk 0:00:05]} 54. Ra6 {[%clk 0:00:02]}  e5 {[%clk 0:00:06]} 55. Re6 {[%clk 0:00:02]}  e4+ {[%clk 0:00:05]} 56. Ke3 {[%clk 0:00:03]}  Kf7 {[%clk 0:00:05]} 57. Re5 {[%clk 0:00:01]}  Ng4+ {[%clk 0:00:05]} 0-1

[Event "November 21 Early 2023"]
[Site "https://www.chess.com"]
[Date "2023.11.21"]
[Round "9"]
[White "Taher, Yoseph Theolifus"]
[Black "Aaditya Dhingra"]
[Result "1-0"]
[Board "40"]
[TimeControl "180+1"]
[WhiteFideId "7105347"]
[BlackFideId "25678191"]
[WhiteElo "2352"]
[BlackElo "2269"]
[WhiteTeam "INA"]
[BlackTeam "IND"]
[WhiteClock "0:01:48"]
[BlackClock "0:00:37"]

1. d4 {[%clk 0:02:49]}  g6 {[%clk 0:02:57]} 2. e4 {[%clk 0:02:49]}  Bg7 {[%clk 0:02:57]} 3. Nc3 {[%clk 0:02:50]}  c6 {[%clk 0:02:57]} 4. Be3 {[%clk 0:02:51]}  d5 {[%clk 0:02:57]} 5. Qd2 {[%clk 0:02:51]}  dxe4 {[%clk 0:02:55]} 6. Nxe4 {[%clk 0:02:52]}  Nf6 {[%clk 0:02:56]} 7. Nxf6+ {[%clk 0:02:53]}  exf6 {[%clk 0:02:57]} 8. h4 {[%clk 0:02:54]}  h5 {[%clk 0:02:53]} 9. Bc4 {[%clk 0:02:54]}  O-O {[%clk 0:02:52]} 10. Ne2 {[%clk 0:02:54]}  a5 {[%clk 0:02:50]} 11. a3 {[%clk 0:02:52]}  Nd7 {[%clk 0:02:48]} 12. Nf4 {[%clk 0:02:52]}  Nb6 {[%clk 0:02:46]} 13. Ba2 {[%clk 0:02:52]}  Bf5 {[%clk 0:02:42]} 14. O-O-O {[%clk 0:02:51]}  Kh7 {[%clk 0:02:12]} 15. f3 {[%clk 0:02:50]}  Nd5 {[%clk 0:02:06]} 16. Nxd5 {[%clk 0:02:44]}  cxd5 {[%clk 0:02:07]} 17. g4 {[%clk 0:02:45]}  hxg4 {[%clk 0:02:06]} 18. h5 {[%clk 0:02:46]}  g5 {[%clk 0:01:39]} 19. fxg4 {[%clk 0:02:44]}  Be4 {[%clk 0:01:34]} 20. h6 {[%clk 0:02:44]}  Bh8 {[%clk 0:01:32]} 21. Rh2 {[%clk 0:02:41]}  Rc8 {[%clk 0:01:31]} 22. Bb1 {[%clk 0:02:41]}  Qd7 {[%clk 0:01:28]} 23. Rg1 {[%clk 0:02:36]}  Rg8 {[%clk 0:01:21]} 24. c3 {[%clk 0:02:36]}  f5 {[%clk 0:01:18]} 25. Bxg5 {[%clk 0:02:33]}  fxg4 {[%clk 0:01:15]} 26. Rf2 {[%clk 0:02:27]}  f5 {[%clk 0:01:12]} 27. Rgf1 {[%clk 0:02:24]}  Rcf8 {[%clk 0:01:08]} 28. Qf4 {[%clk 0:02:10]}  Qe6 {[%clk 0:01:02]} 29. Bxe4 {[%clk 0:02:06]}  dxe4 {[%clk 0:01:00]} 30. Kb1 {[%clk 0:02:01]}  Rg6 {[%clk 0:00:51]} 31. Ka1 {[%clk 0:01:57]}  Rfg8 {[%clk 0:00:43]} 32. Qc7+ {[%clk 0:01:56]}  Bg7 {[%clk 0:00:40]} 33. Bf4 {[%clk 0:01:49]}  Rxh6 {[%clk 0:00:40]} 34. Bxh6 {[%clk 0:01:49]}  Kxh6 {[%clk 0:00:41]} 35. Rxf5 {[%clk 0:01:48]}  e3 {[%clk 0:00:37]} 36. Qh2+ {[%clk 0:01:48]} 1-0

[Event "November 21 Early 2023"]
[Site "https://www.chess.com"]
[Date "2023.11.21"]
[Round "9"]
[White "Gontcharov, Vladislav"]
[Black "Yeletsky, Ivan"]
[Result "1-0"]
[Board "42"]
[TimeControl "180+1"]
[WhiteFideId "4123492"]
[BlackFideId "24180327"]
[WhiteElo "2420"]
[BlackElo "2358"]
[WhiteTeam "RUS"]
[BlackTeam "RUS"]
[WhiteClock "0:00:08"]
[BlackClock "0:00:01"]

1. d4 {[%clk 0:03:00]}  d6 {[%clk 0:02:58]} 2. c4 {[%clk 0:02:59]}  e5 {[%clk 0:02:58]} 3. Nc3 {[%clk 0:02:58]}  exd4 {[%clk 0:02:58]} 4. Qxd4 {[%clk 0:02:58]}  Nf6 {[%clk 0:02:58]} 5. Nf3 {[%clk 0:02:57]}  Nc6 {[%clk 0:02:54]} 6. Qd1 {[%clk 0:02:57]}  g6 {[%clk 0:02:49]} 7. g3 {[%clk 0:02:56]}  Be6 {[%clk 0:02:43]} 8. b3 {[%clk 0:02:47]}  Bg7 {[%clk 0:02:22]} 9. Bg2 {[%clk 0:02:39]}  d5 {[%clk 0:02:11]} 10. Ng5 {[%clk 0:02:26]}  Ng4 {[%clk 0:01:16]} 11. Bd2 {[%clk 0:01:14]}  dxc4 {[%clk 0:00:57]} 12. Nxe6 {[%clk 0:01:10]}  fxe6 {[%clk 0:00:57]} 13. O-O {[%clk 0:01:05]}  cxb3 {[%clk 0:00:44]} 14. Qxb3 {[%clk 0:00:45]}  O-O {[%clk 0:00:44]} 15. Qxe6+ {[%clk 0:00:43]}  Kh8 {[%clk 0:00:44]} 16. Rad1 {[%clk 0:00:33]}  Qc8 {[%clk 0:00:18]} 17. Qxc8 {[%clk 0:00:29]}  Raxc8 {[%clk 0:00:19]} 18. Bh3 {[%clk 0:00:26]}  h5 {[%clk 0:00:19]} 19. f3 {[%clk 0:00:26]}  Bd4+ {[%clk 0:00:14]} 20. Kg2 {[%clk 0:00:26]}  Nce5 {[%clk 0:00:10]} 21. Nd5 {[%clk 0:00:16]}  Rcd8 {[%clk 0:00:10]} 22. fxg4 {[%clk 0:00:14]}  hxg4 {[%clk 0:00:08]} 23. Bf4 {[%clk 0:00:10]}  gxh3+ {[%clk 0:00:08]} 24. Kxh3 {[%clk 0:00:09]}  Nc6 {[%clk 0:00:07]} 25. Nxc7 {[%clk 0:00:09]}  Rf7 {[%clk 0:00:02]} 26. Ne6 {[%clk 0:00:08]}  Rd5 {[%clk 0:00:02]} 27. Kg2 {[%clk 0:00:08]}  Kg8 {[%clk 0:00:02]} 28. Ng5 {[%clk 0:00:08]}  Rfd7 {[%clk 0:00:01]} 29. Ne6 {[%clk 0:00:08]}  Bg7 {[%clk 0:00:02]} 30. Rxd5 {[%clk 0:00:07]}  Rxd5 {[%clk 0:00:03]} 31. e4 {[%clk 0:00:07]}  Rd3 {[%clk 0:00:03]} 32. Rf2 {[%clk 0:00:08]}  Bd4 {[%clk 0:00:02]} 33. Re2 {[%clk 0:00:08]}  Bb6 {[%clk 0:00:02]} 34. e5 {[%clk 0:00:08]}  Nd4 {[%clk 0:00:03]} 35. Nxd4 {[%clk 0:00:08]}  Rxd4 {[%clk 0:00:03]} 36. e6 {[%clk 0:00:09]}  Kf8 {[%clk 0:00:03]} 37. e7+ {[%clk 0:00:09]}  Ke8 {[%clk 0:00:03]} 38. Bg5 {[%clk 0:00:09]}  Rd5 {[%clk 0:00:04]} 39. h4 {[%clk 0:00:09]}  Rf5 {[%clk 0:00:04]} 40. Rd2 {[%clk 0:00:09]}  Kf7 {[%clk 0:00:03]} 41. Rd8 {[%clk 0:00:09]}  Re5 {[%clk 0:00:01]} 42. Rf8+ {[%clk 0:00:08]} 1-0

[Event "November 21 Early 2023"]
[Site "https://www.chess.com"]
[Date "2023.11.21"]
[Round "9"]
[White "Vestby-Ellingsen, Mads"]
[Black "Dragun, Kamil"]
[Result "1-0"]
[Board "43"]
[TimeControl "180+1"]
[WhiteFideId "1520857"]
[BlackFideId "1134167"]
[WhiteElo "2241"]
[BlackElo "2551"]
[WhiteTeam "NOR"]
[BlackTeam "POL"]
[WhiteClock "0:00:02"]
[BlackClock "0:00:00"]

1. d4 {[%clk 0:03:00]}  Nf6 {[%clk 0:03:00]} 2. Bf4 {[%clk 0:03:00]}  d5 {[%clk 0:02:58]} 3. e3 {[%clk 0:03:00]}  e6 {[%clk 0:02:57]} 4. Nd2 {[%clk 0:02:59]}  Bd6 {[%clk 0:02:57]} 5. Ngf3 {[%clk 0:02:59]}  O-O {[%clk 0:02:54]} 6. Bd3 {[%clk 0:02:57]}  c5 {[%clk 0:02:49]} 7. dxc5 {[%clk 0:02:54]}  Bxc5 {[%clk 0:02:48]} 8. O-O {[%clk 0:02:50]}  Nc6 {[%clk 0:02:48]} 9. c4 {[%clk 0:02:49]}  Re8 {[%clk 0:02:26]} 10. Bg5 {[%clk 0:02:37]}  h6 {[%clk 0:02:24]} 11. Bh4 {[%clk 0:02:34]}  Be7 {[%clk 0:02:18]} 12. a3 {[%clk 0:02:26]}  b6 {[%clk 0:02:17]} 13. cxd5 {[%clk 0:02:22]}  Nxd5 {[%clk 0:02:16]} 14. Bxe7 {[%clk 0:02:18]}  Qxe7 {[%clk 0:02:17]} 15. Rc1 {[%clk 0:02:14]}  Bb7 {[%clk 0:02:17]} 16. Bb1 {[%clk 0:02:12]}  Nf6 {[%clk 0:02:00]} 17. Ne4 {[%clk 0:02:06]}  Na5 {[%clk 0:01:56]} 18. Nxf6+ {[%clk 0:01:44]}  Qxf6 {[%clk 0:01:57]} 19. b4 {[%clk 0:01:44]}  Nc6 {[%clk 0:01:31]} 20. Be4 {[%clk 0:01:38]}  Nd8 {[%clk 0:01:15]} 21. Qa4 {[%clk 0:01:20]}  Re7 {[%clk 0:01:00]} 22. Bxb7 {[%clk 0:01:15]}  Nxb7 {[%clk 0:01:01]} 23. Rfd1 {[%clk 0:01:11]}  e5 {[%clk 0:01:02]} 24. Rd7 {[%clk 0:01:03]}  Nd6 {[%clk 0:00:55]} 25. Rd1 {[%clk 0:00:37]}  b5 {[%clk 0:00:48]} 26. R7xd6 {[%clk 0:00:24]}  bxa4 {[%clk 0:00:45]} 27. Rxf6 {[%clk 0:00:24]}  gxf6 {[%clk 0:00:46]} 28. Rc1 {[%clk 0:00:21]}  Rb8 {[%clk 0:00:45]} 29. Kf1 {[%clk 0:00:16]}  Rbb7 {[%clk 0:00:40]} 30. Rc5 {[%clk 0:00:13]}  Rec7 {[%clk 0:00:37]} 31. Ra5 {[%clk 0:00:13]}  Rc1+ {[%clk 0:00:34]} 32. Ke2 {[%clk 0:00:13]}  Rc2+ {[%clk 0:00:35]} 33. Kf1 {[%clk 0:00:13]}  Rd7 {[%clk 0:00:32]} 34. g3 {[%clk 0:00:12]}  Rd1+ {[%clk 0:00:28]} 35. Kg2 {[%clk 0:00:12]}  e4 {[%clk 0:00:29]} 36. Nd4 {[%clk 0:00:11]}  Ra2 {[%clk 0:00:27]} 37. Rxa4 {[%clk 0:00:10]}  Rdd2 {[%clk 0:00:26]} 38. g4 {[%clk 0:00:09]}  Rxf2+ {[%clk 0:00:24]} 39. Kg3 {[%clk 0:00:09]}  Rxh2 {[%clk 0:00:18]} 40. Rxa7 {[%clk 0:00:09]}  Rag2+ {[%clk 0:00:11]} 41. Kf4 {[%clk 0:00:10]}  Rh4 {[%clk 0:00:10]} 42. Kxe4 {[%clk 0:00:10]}  Rgxg4+ {[%clk 0:00:10]} 43. Kf3 {[%clk 0:00:09]}  Rg1 {[%clk 0:00:09]} 44. b5 {[%clk 0:00:08]}  Rb1 {[%clk 0:00:08]} 45. a4 {[%clk 0:00:08]}  h5 {[%clk 0:00:06]} 46. Rb7 {[%clk 0:00:07]}  Rh2 {[%clk 0:00:05]} 47. a5 {[%clk 0:00:06]}  Ra2 {[%clk 0:00:06]} 48. a6 {[%clk 0:00:06]}  h4 {[%clk 0:00:06]} 49. a7 {[%clk 0:00:06]}  Kg7 {[%clk 0:00:07]} 50. Nf5+ {[%clk 0:00:05]}  Kg6 {[%clk 0:00:06]} 51. Nxh4+ {[%clk 0:00:06]}  Kg5 {[%clk 0:00:07]} 52. Ng2 {[%clk 0:00:03]}  f5 {[%clk 0:00:00]} 53. b6 {[%clk 0:00:02]} 1-0

[Event "November 21 Early 2023"]
[Site "https://www.chess.com"]
[Date "2023.11.21"]
[Round "9"]
[White "gueraumasague"]
[Black "Vignesh N R"]
[Result "0-1"]
[Board "44"]
[TimeControl "180+1"]
[BlackFideId "25012215"]
[WhiteElo "2600"]
[BlackElo "2425"]
[BlackTeam "IND"]
[WhiteClock "0:00:19"]
[BlackClock "0:01:45"]

1. e4 {[%clk 0:03:00]}  c5 {[%clk 0:02:58]} 2. Nc3 {[%clk 0:03:01]}  d6 {[%clk 0:02:57]} 3. Bb5+ {[%clk 0:03:02]}  Bd7 {[%clk 0:02:57]} 4. a4 {[%clk 0:03:02]}  Nc6 {[%clk 0:02:57]} 5. f4 {[%clk 0:03:01]}  g6 {[%clk 0:02:56]} 6. Nf3 {[%clk 0:03:02]}  Bg7 {[%clk 0:02:57]} 7. O-O {[%clk 0:03:01]}  e6 {[%clk 0:02:57]} 8. Bxc6 {[%clk 0:03:01]}  Bxc6 {[%clk 0:02:57]} 9. f5 {[%clk 0:02:59]}  Nf6 {[%clk 0:02:55]} 10. fxe6 {[%clk 0:02:57]}  fxe6 {[%clk 0:02:55]} 11. d3 {[%clk 0:02:36]}  O-O {[%clk 0:02:54]} 12. h3 {[%clk 0:02:28]}  d5 {[%clk 0:02:53]} 13. e5 {[%clk 0:02:11]}  Nd7 {[%clk 0:02:51]} 14. Bg5 {[%clk 0:02:00]}  Qc7 {[%clk 0:02:49]} 15. Be7 {[%clk 0:02:00]}  Rxf3 {[%clk 0:02:30]} 16. Rxf3 {[%clk 0:01:22]}  Nxe5 {[%clk 0:02:28]} 17. Bg5 {[%clk 0:01:09]}  Nxf3+ {[%clk 0:02:19]} 18. Qxf3 {[%clk 0:01:10]}  Rf8 {[%clk 0:02:19]} 19. Qg4 {[%clk 0:01:10]}  Qf7 {[%clk 0:02:14]} 20. Kh1 {[%clk 0:01:05]}  Be5 {[%clk 0:02:10]} 21. Qe2 {[%clk 0:01:00]}  Qf5 {[%clk 0:02:08]} 22. Bh6 {[%clk 0:00:58]}  Rf7 {[%clk 0:02:08]} 23. Kg1 {[%clk 0:00:34]}  g5 {[%clk 0:02:05]} 24. Re1 {[%clk 0:00:32]}  Bg3 {[%clk 0:01:50]} 25. Rf1 {[%clk 0:00:32]}  Qxf1+ {[%clk 0:01:45]} 26. Qxf1 {[%clk 0:00:32]}  Bh2+ {[%clk 0:01:45]} 27. Kxh2 {[%clk 0:00:33]}  Rxf1 {[%clk 0:01:46]} 28. Bxg5 {[%clk 0:00:33]}  Rf2 {[%clk 0:01:46]} 29. Be3 {[%clk 0:00:27]}  Rxc2 {[%clk 0:01:45]} 30. Bxc5 {[%clk 0:00:19]}  d4 {[%clk 0:01:45]} 0-1

[Event "November 21 Early 2023"]
[Site "https://www.chess.com"]
[Date "2023.11.21"]
[Round "9"]
[White "Statham_l3"]
[Black "Samunenkov, Ihor"]
[Result "0-1"]
[Board "46"]
[TimeControl "180+1"]
[BlackFideId "14187086"]
[WhiteElo "2595"]
[BlackElo "2473"]
[BlackTeam "UKR"]
[WhiteClock "0:00:04"]
[BlackClock "0:00:26"]

1. e4 {[%clk 0:02:59]}  c6 {[%clk 0:02:59]} 2. d4 {[%clk 0:02:58]}  d5 {[%clk 0:02:59]} 3. f3 {[%clk 0:02:59]}  e6 {[%clk 0:02:59]} 4. Nc3 {[%clk 0:02:58]}  Qb6 {[%clk 0:02:59]} 5. a3 {[%clk 0:02:55]}  Nf6 {[%clk 0:02:59]} 6. e5 {[%clk 0:02:54]}  Nfd7 {[%clk 0:02:59]} 7. f4 {[%clk 0:02:52]}  c5 {[%clk 0:02:59]} 8. Nf3 {[%clk 0:02:51]}  Nc6 {[%clk 0:03:00]} 9. Be3 {[%clk 0:02:49]}  cxd4 {[%clk 0:02:58]} 10. Nxd4 {[%clk 0:02:47]}  Bc5 {[%clk 0:02:57]} 11. Na4 {[%clk 0:02:31]}  Qa5+ {[%clk 0:02:56]} 12. b4 {[%clk 0:02:09]}  Qxa4 {[%clk 0:02:39]} 13. Bb5 {[%clk 0:02:00]}  Bxd4 {[%clk 0:02:35]} 14. Bxa4 {[%clk 0:01:57]}  Bxe3 {[%clk 0:02:34]} 15. Qf3 {[%clk 0:01:46]}  Bb6 {[%clk 0:02:17]} 16. O-O-O {[%clk 0:01:33]}  O-O {[%clk 0:02:12]} 17. Bxc6 {[%clk 0:01:17]}  bxc6 {[%clk 0:02:12]} 18. h4 {[%clk 0:01:18]}  a5 {[%clk 0:02:07]} 19. b5 {[%clk 0:01:03]}  cxb5 {[%clk 0:02:02]} 20. Rh3 {[%clk 0:01:03]}  Nc5 {[%clk 0:01:46]} 21. h5 {[%clk 0:00:57]}  Ne4 {[%clk 0:01:38]} 22. g4 {[%clk 0:00:39]}  Nf2 {[%clk 0:01:36]} 23. f5 {[%clk 0:00:30]}  Nxd1 {[%clk 0:01:34]} 24. Kxd1 {[%clk 0:00:31]}  f6 {[%clk 0:01:08]} 25. h6 {[%clk 0:00:22]}  Ra7 {[%clk 0:00:59]} 26. g5 {[%clk 0:00:09]}  fxg5 {[%clk 0:00:48]} 27. hxg7 {[%clk 0:00:10]}  Rxf5 {[%clk 0:00:42]} 28. Qh5 {[%clk 0:00:08]}  Rxg7 {[%clk 0:00:42]} 29. Qe8+ {[%clk 0:00:08]}  Rf8 {[%clk 0:00:42]} 30. Qc6 {[%clk 0:00:08]}  g4 {[%clk 0:00:40]} 31. Rg3 {[%clk 0:00:06]}  Bf2 {[%clk 0:00:39]} 32. Rg2 {[%clk 0:00:06]}  g3 {[%clk 0:00:39]} 33. Qxb5 {[%clk 0:00:05]}  d4 {[%clk 0:00:39]} 34. Qd3 {[%clk 0:00:04]}  Bb7 {[%clk 0:00:38]} 35. Rxg3 {[%clk 0:00:04]}  Rxg3 {[%clk 0:00:37]} 36. Qc4 {[%clk 0:00:04]}  Bd5 {[%clk 0:00:32]} 37. Qc7 {[%clk 0:00:04]}  Be3 {[%clk 0:00:27]} 38. a4 {[%clk 0:00:04]}  Rg1+ {[%clk 0:00:26]} 39. Ke2 {[%clk 0:00:04]}  Rf2+ {[%clk 0:00:26]} 40. Kd3 {[%clk 0:00:04]}  Rd1# {[%clk 0:00:26]} 0-1